bitfinex/quotes_BTCUSD_20251202
["timestamp","ask_amount","ask_price","bid_price","bid_amount"]
[1764682337391,0.01143079,87483.0,87481.0,0.02492]
[1764682337588,0.10295506,87487.0,87481.0,0.02492]
[1764682337786,0.228608,87486.0,87481.0,0.03635105]
[1764682337964,0.22861065,87485.0,87482.0,0.22861834]
[1764682338162,0.24004118,87485.0,87481.0,0.03635105]
[1764682338403,0.675384,87490.0,87480.0,0.06653118]
[1764682338404,0.0114287,87499.0,87489.0,0.01143]
[1764682338610,0.01142909,87496.0,87494.0,0.01813]
[1764682338833,0.22858449,87495.0,87494.0,0.01813]
[1764682339016,0.0114287,87499.0,87495.0,0.06189]
[1764682339192,0.0114287,87499.0,87496.0,0.02492]
[1764682339396,0.22857926,87497.0,87496.0,0.02492]
[1764682340218,0.22858449,87495.0,87494.0,0.01813]
[1764682340419,0.22858449,87495.0,87494.0,0.04305]
[1764682341615,0.24000822,87497.0,87494.0,0.04305]
[1764682341910,0.24000822,87497.0,87494.0,0.04405]
[1764682342053,0.22857926,87497.0,87496.0,0.02492]
[1764682343339,0.22857753,87498.0,87496.0,0.02492]
[1764682343767,0.22857926,87497.0,87496.0,0.02492]
[1764682345107,0.24000284,87499.0,87496.0,0.02492]
[1764682345307,0.22857887,87498.0,87496.0,0.02492]
[1764682345726,0.01142857,87500.0,87496.0,0.02492]
[1764682345939,0.0114287,87499.0,87496.0,0.02492]
[1764682346141,0.22857926,87497.0,87496.0,0.02492]
[1764682346687,0.22858449,87495.0,87494.0,0.01813]
[1764682348221,0.01142883,87498.0,87494.0,0.04305]
[1764682348434,0.01142857,87500.0,87495.0,0.228584]
[1764682348634,0.64309478,87501.0,87496.0,0.22858096]
[1764682348837,0.22857699,87498.0,87495.0,0.24001322]
[1764682349018,0.22857409,87499.0,87495.0,0.24001322]
[1764682349222,0.22858449,87495.0,87494.0,0.01813]
[1764682349826,0.01142883,87498.0,87494.0,0.27163604]
[1764682350031,0.0915248,87501.0,87498.0,0.01142883]
[1764682350326,0.01142804,87504.0,87500.0,0.26491967]
[1764682350509,0.01142804,87504.0,87499.0,0.0114287]
[1764682350510,0.0915248,87501.0,87499.0,0.0483987]
[1764682350708,0.33152212,87501.0,87497.0,0.01813]
[1764682351170,0.22857665,87498.0,87497.0,0.01813]
[1764682351737,0.01142922,87495.0,87487.0,0.01813]
[1764682351943,0.01142922,87495.0,87489.0,0.2581578]
[1764682352145,0.01142909,87496.0,87489.0,0.2581598]
[1764682352384,0.22859424,87492.0,87489.0,0.2581598]
[1764682352582,0.22859424,87492.0,87489.0,0.01813]
[1764682352788,0.22860016,87489.0,87487.0,0.01813]
[1764682353000,0.22860277,87488.0,87487.0,0.01813]
[1764682354009,0.22861584,87483.0,87482.0,0.01808]
[1764682354215,0.22861584,87483.0,87474.0,0.02074]
[1764682354216,0.24006874,87475.0,87474.0,0.02074]
[1764682354372,0.22863675,87475.0,87474.0,0.02074]
[1764682355708,0.22863675,87475.0,87474.0,0.02174]
[1764682356006,0.22863675,87475.0,87474.0,0.001]
[1764682359680,0.022872,87481.0,87475.0,0.01143183]
[1764682359871,0.01143144,87478.0,87475.0,0.02818]
[1764682360071,0.24006066,87478.0,87475.0,0.25681578]
[1764682360272,0.01143092,87482.0,87480.0,0.02818]
[1764682360273,0.22861845,87482.0,87480.0,0.02818]
[1764682360478,0.22861845,87482.0,87481.0,0.08897]
[1764682361430,0.0114317,87476.0,87473.0,0.02108]
[1764682361657,0.22864198,87473.0,87464.0,0.03217327]
[1764682361882,0.22864198,87473.0,87466.0,0.01143301]
[1764682362080,0.22864198,87473.0,87466.0,0.2400926]
[1764682362305,0.22865323,87469.0,87466.0,0.2400926]
[1764682362506,0.22865323,87469.0,87466.0,0.01143301]
[1764682362686,0.01143196,87474.0,87468.0,0.01143275]
[1764682362891,0.2400742,87473.0,87469.0,0.22865004]
[1764682363087,0.24007716,87472.0,87469.0,0.22865004]
[1764682363489,0.22864826,87471.0,87468.0,0.2400852]
[1764682363693,0.22865995,87467.0,87465.0,0.01968607]
[1764682363879,0.22865995,87467.0,87465.0,0.01974297]
[1764682364078,0.24008972,87468.0,87465.0,0.01974297]
[1764682364300,0.01143275,87468.0,87465.0,0.24840431]
[1764682364501,0.22865396,87469.0,87466.0,0.24009271]
[1764682364665,0.01143249,87470.0,87465.0,0.03117611]
[1764682364869,0.01143262,87469.0,87465.0,0.03117611]
[1764682365066,0.01143275,87468.0,87465.0,0.03117611]
[1764682365300,0.24008867,87468.0,87465.0,0.25983832]
[1764682365920,0.22866027,87466.0,87465.0,0.01974297]
[1764682366299,0.0915248,87471.0,87470.0,0.22864982]
[1764682366501,0.24004703,87483.0,87472.0,0.01143222]
[1764682366702,0.24005633,87480.0,87479.0,0.02818]
[1764682367503,0.22862706,87479.0,87477.0,0.26114256]
[1764682367832,0.2286368,87475.0,87470.0,0.24007769]
[1764682367991,0.2286368,87475.0,87467.0,0.01143288]
[1764682367992,0.0915248,87471.0,87467.0,0.01143288]
[1764682368190,0.0915248,87471.0,87468.0,0.24008554]
[1764682368393,0.0915248,87471.0,87469.0,0.22865178]
[1764682368706,0.0915248,87471.0,87470.0,0.22864982]
[1764682369311,0.0915248,87471.0,87469.0,0.22865178]
[1764682369510,0.201,87480.0,87472.0,0.01143222]
[1764682369713,0.001,87480.0,87479.0,0.02818]
[1764682369949,0.01143092,87482.0,87479.0,0.02818]
[1764682370434,0.22862368,87480.0,87479.0,0.02818]
[1764682371059,0.22962368,87480.0,87479.0,0.02818]
[1764682371488,0.001,87480.0,87479.0,0.02818]
[1764682371704,0.001,87480.0,87479.0,0.06789]
[1764682371910,0.22962368,87480.0,87479.0,0.06789]
[1764682372526,0.001,87480.0,87479.0,0.29651629]
[1764682373803,0.001,87480.0,87479.0,0.35903928]
[1764682374831,2.0,87499.0,87497.0,0.01142896]
[1764682375029,2.0,87500.0,87498.0,0.02108]
[1764682375230,2.0,87500.0,87499.0,0.22857404]
[1764682375430,2.0,87500.0,87499.0,0.25675404]
[1764682375660,2.0,87500.0,87499.0,0.29646404]
[1764682376207,0.0915248,87501.0,87500.0,0.22857142]
[1764682376402,0.09163968,87501.0,87500.0,0.25675142]
[1764682377227,0.09163968,87501.0,87500.0,0.29646142]
[1764682377809,0.00011488,87501.0,87500.0,0.29646142]
[1764682378036,2.0,87514.0,87512.0,0.22853932]
[1764682378209,0.0915248,87515.0,87514.0,0.02818]
[1764682378640,0.3200572,87515.0,87514.0,0.02818]
[1764682379891,0.0915248,87515.0,87514.0,0.02818]
[1764682380074,0.33464864,87524.0,87517.0,0.01142635]
[1764682380229,0.01142569,87522.0,87518.0,0.03971]
[1764682380426,0.23994545,87520.0,87518.0,0.02108]
[1764682380624,0.2285218,87519.0,87518.0,0.02108]
[1764682381128,0.22853531,87514.0,87510.0,0.01142726]
[1764682381335,0.22853531,87514.0,87510.0,0.23997197]
[1764682381561,0.22853531,87514.0,87506.0,0.02950778]
[1764682381562,0.22854792,87509.0,87506.0,0.01808]
[1764682381754,0.22854792,87509.0,87506.0,0.01142778]
[1764682381969,0.22854792,87509.0,87505.0,0.24663761]
[1764682382205,0.23998053,87508.0,87501.0,0.01142844]
[1764682382424,0.01142831,87502.0,87500.0,0.01808]
[1764682382631,0.22856162,87504.0,87501.0,0.2399949]
[1764682382807,0.022872,87507.0,87503.0,0.02818]
[1764682383113,0.022872,87507.0,87504.0,0.23998645]
[1764682383310,0.022872,87507.0,87506.0,0.22855575]
[1764682383515,0.25141771,87510.0,87507.0,0.22855275]
[1764682383687,0.22855059,87508.0,87506.0,0.01142778]
[1764682383887,0.01142739,87509.0,87506.0,0.01142778]
[1764682384057,0.01142739,87509.0,87504.0,0.01142804]
[1764682384058,0.22855138,87508.0,87504.0,0.23998655]
[1764682384254,0.21142726,87510.0,87500.0,0.01142857]
[1764682384467,2.0,87516.0,87513.0,0.01142687]
[1764682384666,0.0915248,87515.0,87513.0,0.02818]
[1764682384864,0.22853486,87514.0,87513.0,0.06789]
[1764682385170,0.22853486,87514.0,87513.0,0.02818]
[1764682385310,0.2285434,87511.0,87509.0,0.02108]
[1764682386359,0.001,87514.0,87509.0,0.03250739]
[1764682386605,0.01242674,87514.0,87510.0,0.03815726]
[1764682386761,0.22853772,87513.0,87510.0,0.03815726]
[1764682387284,0.22854013,87512.0,87510.0,0.26670198]
[1764682387803,0.22854013,87512.0,87510.0,0.02673]
[1764682389017,0.10295141,87515.0,87511.0,0.03815713]
[1764682389220,0.33148539,87515.0,87512.0,0.22853769]
[1764682389437,0.33148539,87515.0,87511.0,0.03815713]
[1764682389639,0.22853544,87514.0,87511.0,0.26669737]
[1764682389807,0.22854008,87512.0,87511.0,0.02673]
[1764682391312,0.10295141,87515.0,87511.0,0.25527255]
[1764682391519,0.0915248,87515.0,87512.0,0.22853772]
[1764682391716,0.10295141,87515.0,87511.0,0.26669968]
[1764682391948,0.23996401,87514.0,87511.0,0.26669968]
[1764682392129,0.22853754,87513.0,87511.0,0.26669968]
[1764682392337,0.23996401,87514.0,87511.0,0.26669968]
[1764682392550,0.23996401,87514.0,87512.0,0.22853891]
[1764682392762,0.001,87515.0,87514.0,0.22853486]
[1764682392972,0.0002499,87517.0,87516.0,0.22852964]
[1764682393209,0.0002499,87517.0,87516.0,0.25525964]
[1764682393425,0.0002499,87517.0,87516.0,0.29601964]
[1764682397459,0.0002499,87517.0,87516.0,0.29701964]
[1764682398850,0.0002499,87517.0,87516.0,0.35954263]
[1764682399062,0.0002499,87517.0,87516.0,0.38236239]
[1764682399669,0.0002499,87517.0,87516.0,0.35954263]
[1764682400259,0.0002499,87517.0,87516.0,0.38136239]
[1764682400672,0.0002499,87517.0,87516.0,0.38236239]
[1764682403288,0.0002499,87517.0,87516.0,0.35954263]
[1764682412545,0.0002499,87517.0,87516.0,0.06849]
[1764682412742,0.0002499,87517.0,87516.0,0.31509964]
[1764682413245,0.22877692,87517.0,87516.0,0.001]
[1764682413418,0.22854343,87511.0,87509.0,0.02108]
[1764682413628,0.2285453,87510.0,87509.0,0.02108]
[1764682413831,0.22855314,87507.0,87506.0,0.01952]
[1764682414001,0.22855076,87508.0,87506.0,0.01952]
[1764682414412,0.01142739,87509.0,87506.0,0.01952]
[1764682414632,0.10295219,87509.0,87506.0,0.2480749]
[1764682414842,0.10295167,87513.0,87508.0,0.25489053]
[1764682415040,0.011427,87512.0,87508.0,0.25489053]
[1764682415240,0.32006194,87514.0,87512.0,0.02634]
[1764682415445,0.01142687,87513.0,87511.0,0.22854196]
[1764682415680,0.01142687,87513.0,87511.0,0.26542196]
[1764682415979,0.32006194,87514.0,87513.0,0.01986]
[1764682417090,0.0915248,87514.0,87513.0,0.01986]
[1764682417294,0.0915248,87514.0,87513.0,0.31000747]
[1764682417295,0.001,87514.0,87513.0,0.31000747]
[1764682417492,0.001,87514.0,87513.0,0.08147]
[1764682417691,0.001,87514.0,87513.0,0.31000747]
[1764682417918,0.001,87514.0,87513.0,0.08147]
[1764682418159,0.001,87514.0,87513.0,0.04459]
[1764682418372,0.22953486,87514.0,87513.0,0.04459]
[1764682418748,0.001,87514.0,87513.0,0.04459]
[1764682419744,0.001,87514.0,87513.0,0.01986]
[1764682419957,0.001,87514.0,87513.0,0.31000747]
[1764682420614,0.0002499,87517.0,87516.0,0.22852964]
[1764682420816,0.0002499,87517.0,87516.0,0.25325964]
[1764682421024,0.0002499,87517.0,87516.0,0.29013964]
[1764682421426,0.0002499,87517.0,87516.0,0.06161]
[1764682422214,0.0002499,87517.0,87516.0,0.29013964]
[1764682422963,0.0002499,87517.0,87516.0,0.02473]
[1764682423211,0.0012499,87517.0,87516.0,0.25325964]
[1764682424168,0.0012499,87517.0,87516.0,0.02473]
[1764682425716,0.0012499,87517.0,87516.0,0.25325964]
[1764682426230,0.0012499,87517.0,87516.0,0.29013964]
[1764682426986,0.0002499,87517.0,87516.0,0.29013964]
[1764682428242,0.0002499,87517.0,87516.0,0.35266263]
[1764682428627,0.0002499,87517.0,87516.0,0.37548239]
[1764682429059,0.0002499,87517.0,87516.0,0.35366263]
[1764682429479,0.0002499,87517.0,87516.0,0.37548239]
[1764682430207,0.0002499,87517.0,87516.0,0.35366263]
[1764682430742,0.0002499,87517.0,87516.0,0.37648239]
[1764682431163,0.0002499,87517.0,87516.0,0.35366263]
[1764682431397,0.0002499,87517.0,87516.0,0.37648239]
[1764682432938,0.0002499,87517.0,87516.0,0.35366263]
[1764682433218,0.0002499,87517.0,87516.0,0.37648239]
[1764682434026,0.0002499,87517.0,87516.0,0.35366263]
[1764682435087,0.0002499,87517.0,87516.0,0.001]
[1764682435488,0.22877692,87517.0,87516.0,0.001]
[1764682435695,0.25164892,87517.0,87516.0,0.001]
[1764682435912,0.22854901,87509.0,87507.0,0.01808]
[1764682436116,0.22855314,87507.0,87506.0,0.01952]
[1764682436319,0.01142791,87505.0,87501.0,0.23999495]
[1764682436496,0.22857404,87499.0,87498.0,0.02108]
[1764682436802,0.22857926,87497.0,87496.0,0.02108]
[1764682438116,0.22859232,87492.0,87491.0,0.01808]
[1764682438337,0.22859232,87492.0,87491.0,0.01819488]
[1764682439497,0.22859232,87492.0,87491.0,0.07980488]
[1764682440280,0.22858988,87493.0,87491.0,0.07980488]
[1764682440426,0.22858988,87493.0,87492.0,0.03688]
[1764682440631,0.22858988,87493.0,87492.0,0.06161]
[1764682440831,0.24000967,87497.0,87492.0,0.06161]
[1764682440832,0.22856391,87503.0,87492.0,0.07303961]
[1764682441033,2.01142778,87506.0,87501.0,0.04459]
[1764682441256,0.23998608,87506.0,87505.0,0.02473]
[1764682441662,0.01142791,87505.0,87501.0,0.01986]
[1764682441960,0.2285662,87502.0,87501.0,0.01986]
[1764682442299,0.01142804,87504.0,87501.0,0.01986]
[1764682442628,0.22856379,87503.0,87501.0,0.01986]
[1764682442772,0.01142804,87504.0,87502.0,0.22856585]
[1764682442978,0.23999017,87504.0,87501.0,0.25985702]
[1764682443496,0.23999178,87503.0,87499.0,0.24000104]
[1764682444043,0.23999178,87503.0,87500.0,0.22857142]
[1764682444282,0.23999178,87503.0,87500.0,0.01142857]
[1764682444699,0.01142817,87503.0,87501.0,0.2285688]
[1764682444862,0.01142804,87504.0,87501.0,0.23999724]
[1764682445059,0.22856299,87504.0,87500.0,0.01142857]
[1764682445273,0.22856002,87505.0,87500.0,0.01142857]
[1764682445453,0.22856694,87502.0,87500.0,0.01142857]
[1764682445652,0.22856886,87501.0,87497.0,0.01142896]
[1764682445879,0.2400003,87500.0,87497.0,0.01142896]
[1764682446076,0.24000014,87500.0,87497.0,0.24000787]
[1764682446478,0.01142831,87502.0,87499.0,0.22857167]
[1764682446703,0.01142817,87503.0,87500.0,0.23999747]
[1764682447519,0.23999222,87503.0,87500.0,0.23999747]
[1764682448321,0.23999088,87504.0,87501.0,0.2285663]
[1764682448725,0.01142752,87508.0,87503.0,0.25280358]
[1764682448921,0.01142752,87508.0,87491.0,0.00011488]
[1764682448922,0.2,87500.0,87491.0,0.00011488]
[1764682449096,0.01142909,87496.0,87493.0,0.01808]
[1764682449300,0.2285871,87494.0,87493.0,0.01808]
[1764682449700,0.22858682,87495.0,87493.0,0.04232]
[1764682450113,0.2285871,87494.0,87493.0,0.04232]
[1764682450717,0.22858682,87495.0,87493.0,0.04232]
[1764682450916,0.22855853,87505.0,87494.0,0.29090656]
[1764682451140,0.22857142,87500.0,87499.0,0.04228]
[1764682451578,0.2,87510.0,87504.0,0.01142804]
[1764682451712,0.23997498,87510.0,87509.0,0.04228]
[1764682451920,0.22854409,87511.0,87509.0,0.04228]
[1764682452149,0.22854409,87511.0,87510.0,0.02424]
[1764682452589,0.32006889,87511.0,87510.0,0.02424]
[1764682452970,0.32106889,87511.0,87510.0,0.02424]
[1764682453883,0.001,87511.0,87510.0,0.2527853]
[1764682454223,0.33467625,87517.0,87510.0,0.07374726]
[1764682454424,0.33467625,87517.0,87516.0,0.02424]
[1764682454425,0.0002499,87517.0,87516.0,0.02424]
[1764682454779,0.22877692,87517.0,87516.0,0.06232]
[1764682455684,0.23077692,87517.0,87516.0,0.02424]
[1764682456024,0.22854036,87512.0,87509.0,0.05612]
[1764682456342,0.32006112,87514.0,87511.0,0.23996855]
[1764682456639,0.2285383,87513.0,87511.0,0.02424]
[1764682456787,0.23995621,87516.0,87513.0,0.02424]
[1764682457187,0.23995621,87516.0,87514.0,0.01804]
[1764682457389,0.0002499,87517.0,87516.0,0.22852964]
[1764682457631,0.0002499,87517.0,87516.0,0.25276964]
[1764682457845,0.0002499,87517.0,87516.0,0.29084964]
[1764682458016,0.0002499,87517.0,87516.0,0.06232]
[1764682458181,0.0002499,87517.0,87516.0,0.02424]
[1764682458391,0.0002499,87517.0,87516.0,0.25276964]
[1764682459068,0.0002499,87517.0,87516.0,0.29084964]
[1764682459725,0.0002499,87517.0,87514.0,0.25799913]
[1764682460148,0.0002499,87517.0,87514.0,0.01804]
[1764682460293,0.2285453,87510.0,87509.0,0.01804]
[1764682460494,0.2285453,87510.0,87506.0,0.02950778]
[1764682460495,0.23997485,87510.0,87506.0,0.02950778]
[1764682460697,0.23997485,87510.0,87506.0,0.01808]
[1764682460698,0.22854809,87509.0,87506.0,0.01808]
[1764682460935,0.01142765,87507.0,87503.0,0.01804]
[1764682461132,0.23998354,87506.0,87503.0,0.02946817]
[1764682461332,0.23998354,87506.0,87498.0,0.01808]
[1764682461333,0.22856881,87501.0,87498.0,0.01808]
[1764682461553,0.22857404,87499.0,87498.0,0.01808]
[1764682461996,0.22858208,87496.0,87492.0,0.2979597]
[1764682462148,0.22858228,87496.0,87493.0,0.24001846]
[1764682462348,0.24000827,87497.0,87494.0,0.24001407]
[1764682462595,0.24000117,87500.0,87497.0,0.22857671]
[1764682462797,0.24000229,87500.0,87497.0,0.01142896]
[1764682463099,0.24000229,87500.0,87497.0,0.24000769]
[1764682463451,0.01142857,87500.0,87499.0,0.01804]
[1764682463650,0.10295324,87501.0,87499.0,0.24661404]
[1764682463862,0.0915248,87501.0,87499.0,0.24661404]
[1764682464079,0.0915248,87501.0,87500.0,0.22857142]
[1764682464900,0.0915248,87501.0,87500.0,0.25281142]
[1764682465276,0.0915248,87501.0,87500.0,0.02424]
[1764682465918,0.0915248,87501.0,87500.0,0.25281142]
[1764682466470,0.0915248,87501.0,87500.0,0.02424]
[1764682466676,0.32009361,87501.0,87500.0,0.02424]
[1764682467005,0.32009361,87501.0,87500.0,0.02524]
[1764682468954,0.0915248,87501.0,87500.0,0.02524]
[1764682469180,0.0915248,87501.0,87500.0,0.25381142]
[1764682469476,0.0915248,87501.0,87500.0,0.02524]
[1764682470138,0.32009361,87501.0,87500.0,0.001]
[1764682470343,0.0915248,87501.0,87500.0,0.001]
[1764682471154,0.0915248,87501.0,87500.0,0.22957142]
[1764682471363,0.0915248,87501.0,87500.0,0.001]
[1764682472073,0.0915248,87501.0,87500.0,0.22957142]
[1764682472277,0.0915248,87501.0,87500.0,0.001]
[1764682472476,0.0915248,87501.0,87500.0,0.06332]
[1764682472675,0.0915248,87501.0,87500.0,0.02524]
[1764682472884,0.32009361,87501.0,87500.0,0.02524]
[1764682473608,0.32009361,87501.0,87500.0,0.001]
[1764682475675,2.0,87509.0,87500.0,0.06665]
[1764682475880,0.22854386,87511.0,87509.0,0.02628]
[1764682476077,0.0915248,87510.0,87509.0,0.02628]
[1764682476289,0.0915248,87510.0,87509.0,0.25482792]
[1764682476533,0.0915248,87510.0,87509.0,0.02628]
[1764682477428,0.0915248,87510.0,87509.0,0.25482792]
[1764682477834,0.0915248,87510.0,87509.0,0.02628]
[1764682478003,0.0915248,87510.0,87509.0,0.06537]
[1764682478399,0.23996039,87515.0,87511.0,0.01142713]
[1764682478601,0.23996039,87515.0,87514.0,0.04405]
[1764682479447,0.23996039,87515.0,87514.0,0.01936]
[1764682479650,0.01142752,87508.0,87505.0,0.01829]
[1764682479855,0.0915248,87507.0,87502.0,0.01808]
[1764682480058,0.10295245,87507.0,87503.0,0.23999085]
[1764682480313,0.23998353,87506.0,87503.0,0.01142817]
[1764682480515,0.01142778,87506.0,87502.0,0.01808]
[1764682480687,0.0915248,87507.0,87505.0,0.01936]
[1764682481060,0.0915248,87507.0,87505.0,0.24791828]
[1764682481245,0.0915248,87507.0,87506.0,0.22855575]
[1764682481647,0.022872,87514.0,87512.0,0.23996635]
[1764682481851,0.0915248,87515.0,87513.0,0.27258533]
[1764682482088,0.0915248,87515.0,87513.0,0.01936]
[1764682482247,0.22853486,87514.0,87513.0,0.01936]
[1764682482472,0.22854108,87512.0,87509.0,0.22854774]
[1764682482690,0.0915248,87513.0,87509.0,0.23997513]
[1764682482927,0.01142726,87510.0,87505.0,0.03078791]
[1764682483134,0.01142726,87510.0,87505.0,0.25934391]
[1764682483309,0.22854794,87509.0,87506.0,0.01142778]
[1764682483515,0.22854794,87509.0,87507.0,0.22855244]
[1764682483740,0.23997293,87510.0,87507.0,0.22855244]
[1764682483942,0.01142752,87508.0,87505.0,0.01936]
[1764682484310,0.22855568,87507.0,87505.0,0.01936]
[1764682484510,0.01142752,87508.0,87505.0,0.01936]
[1764682484647,0.23998301,87508.0,87505.0,0.24791603]
[1764682484854,0.2285533,87507.0,87505.0,0.24791603]
[1764682485057,0.0915248,87513.0,87507.0,0.01142765]
[1764682485257,0.23997365,87510.0,87507.0,0.02469]
[1764682485464,0.01142726,87510.0,87507.0,0.02469]
[1764682485664,0.01142739,87509.0,87506.0,0.22855545]
[1764682485950,0.23997257,87510.0,87506.0,0.22855545]
[1764682486213,0.022872,87506.0,87501.0,0.01936]
[1764682486428,0.01142804,87504.0,87501.0,0.01936]
[1764682486649,0.2285662,87502.0,87501.0,0.01936]
[1764682486822,0.22856582,87503.0,87501.0,0.01936]
[1764682487556,0.22856014,87505.0,87501.0,0.25935509]
[1764682487760,0.22858971,87493.0,87488.0,0.01936]
[1764682487885,0.22859232,87492.0,87489.0,0.01808]
[1764682488093,0.24001877,87494.0,87489.0,0.02951]
[1764682488287,0.22859067,87493.0,87489.0,0.25810957]
[1764682488488,0.24001373,87495.0,87491.0,0.24013811]
[1764682488700,0.22858692,87495.0,87491.0,0.24013736]
[1764682488896,0.2285875,87494.0,87491.0,0.24013736]
[1764682489139,0.2285875,87494.0,87492.0,0.22859202]
[1764682489389,0.10295389,87496.0,87493.0,0.22858968]
[1764682489590,0.0915248,87496.0,87493.0,0.24001916]
[1764682489757,0.32010789,87496.0,87493.0,0.24001916]
[1764682489948,0.22858507,87495.0,87492.0,0.05051961]
[1764682490428,0.33153698,87496.0,87492.0,0.27911097]
[1764682490632,2.22859232,87492.0,87491.0,0.00011488]
[1764682491390,2.0,87492.0,87491.0,0.06389488]
[1764682491594,2.22859232,87492.0,87491.0,0.00011488]
[1764682491802,2.0,87492.0,87491.0,0.22870982]
[1764682492233,2.0,87493.0,87491.0,0.22870982]
[1764682492655,2.0,87492.0,87491.0,0.00011488]
[1764682492857,2.22859232,87492.0,87491.0,0.00111488]
[1764682493499,2.36669028,87492.0,87491.0,0.00011488]
[1764682493704,2.25146432,87492.0,87491.0,0.00011488]
[1764682494400,2.25246432,87492.0,87491.0,0.00011488]
[1764682496716,2.22959232,87492.0,87491.0,0.00011488]
[1764682499553,2.22959232,87492.0,87491.0,0.06389488]
[1764682499554,2.001,87492.0,87491.0,0.06389488]
[1764682499731,2.22959232,87492.0,87491.0,0.00011488]
[1764682500137,2.25246432,87492.0,87491.0,0.00011488]
[1764682500472,2.22959232,87492.0,87491.0,0.00011488]
[1764682500674,2.25246432,87492.0,87491.0,0.00011488]
[1764682502078,2.22959232,87492.0,87491.0,0.00011488]
[1764682502277,2.25246432,87492.0,87491.0,0.00011488]
[1764682503245,2.08689938,87492.0,87491.0,0.00011488]
[1764682503446,2.25246432,87492.0,87491.0,0.00011488]
[1764682504376,2.25246432,87492.0,87491.0,0.06389488]
[1764682504377,0.001,87492.0,87491.0,0.06389488]
[1764682504558,0.01167625,87517.0,87509.0,0.22854792]
[1764682504733,0.2,87510.0,87504.0,0.01936]
[1764682504929,0.022872,87509.0,87504.0,0.01142804]
[1764682505148,0.022872,87509.0,87503.0,0.23999058]
[1764682505322,0.01142752,87508.0,87503.0,0.01142817]
[1764682505520,0.23997865,87508.0,87503.0,0.23999161]
[1764682505719,0.22856114,87504.0,87502.0,0.01808]
[1764682505921,0.22856274,87504.0,87502.0,0.01808]
[1764682506138,0.22856274,87504.0,87500.0,0.01936]
[1764682506139,0.22856823,87502.0,87500.0,0.01936]
[1764682506541,0.22856881,87501.0,87500.0,0.01936]
[1764682506743,0.22856881,87501.0,87491.0,0.01154462]
[1764682506744,0.01142909,87496.0,87491.0,0.00011488]
[1764682507008,0.22859232,87492.0,87491.0,0.00011488]
[1764682507183,0.25146432,87492.0,87491.0,0.00011488]
[1764682509174,0.25146432,87492.0,87491.0,0.00211488]
[1764682509375,0.25146432,87492.0,87491.0,0.00011488]
[1764682511583,0.022872,87492.0,87491.0,0.00011488]
[1764682511759,0.25146432,87492.0,87491.0,0.00011488]
[1764682522833,2.25146432,87492.0,87491.0,0.00011488]
[1764682523038,2.59914345,87492.0,87491.0,0.00011488]
[1764682523238,2.37055113,87492.0,87491.0,0.00011488]
[1764682523442,2.59914345,87492.0,87491.0,0.00011488]
[1764682524851,2.60114345,87492.0,87491.0,0.00011488]
[1764682525048,2.27914345,87492.0,87491.0,0.00011488]
[1764682525248,2.25446432,87492.0,87491.0,0.00011488]
[1764682525834,2.25346432,87492.0,87491.0,0.00011488]
[1764682526290,2.25246432,87492.0,87491.0,0.00011488]
[1764682526519,2.23159232,87492.0,87491.0,0.00011488]
[1764682533481,2.003,87492.0,87491.0,0.00011488]
[1764682533842,2.001,87492.0,87491.0,0.00011488]
[1764682534068,2.23059232,87492.0,87491.0,0.02464488]
[1764682534550,0.002,87492.0,87491.0,0.06038488]
[1764682534757,0.002,87492.0,87491.0,0.28897982]
[1764682535437,0.001,87492.0,87491.0,0.00011488]
[1764682535660,0.23059232,87492.0,87491.0,0.00011488]
[1764682535865,0.25346432,87492.0,87491.0,0.00011488]
[1764682536061,0.25246432,87492.0,87491.0,0.00011488]
[1764682536385,0.022872,87492.0,87491.0,0.00011488]
[1764682536605,0.22858971,87493.0,87491.0,0.00011488]
[1764682536788,0.22859232,87492.0,87491.0,0.00011488]
[1764682537196,0.22858971,87493.0,87491.0,0.00011488]
[1764682537347,0.22859232,87492.0,87491.0,0.00011488]
[1764682537968,0.001,87493.0,87491.0,0.00011488]
[1764682538298,0.001,87493.0,87491.0,0.22870826]
[1764682539024,0.001,87493.0,87492.0,0.29857232]
[1764682540025,0.0915248,87498.0,87496.0,0.22857967]
[1764682540234,2.323,87509.0,87506.0,0.01142778]
[1764682540527,0.0915248,87510.0,87508.0,0.22855053]
[1764682540688,0.3200708,87510.0,87508.0,0.02899]
[1764682540886,0.0915248,87510.0,87508.0,0.02899]
[1764682541093,2.0,87516.0,87510.0,0.01142726]
[1764682541296,0.24020341,87517.0,87515.0,0.02899]
[1764682541495,0.0915248,87516.0,87515.0,0.02899]
[1764682541910,0.32005444,87516.0,87515.0,0.02899]
[1764682542340,0.0935248,87516.0,87515.0,0.06998]
[1764682542517,0.0935248,87516.0,87515.0,0.29851225]
[1764682542845,0.002,87516.0,87515.0,0.29851225]
[1764682543065,0.003,87516.0,87515.0,0.29851225]
[1764682543613,0.002,87516.0,87515.0,0.29851225]
[1764682543811,0.0002499,87517.0,87516.0,0.22852964]
[1764682544124,0.0002499,87517.0,87516.0,0.29850964]
[1764682544528,0.0915248,87528.0,87526.0,0.2285026]
[1764682544952,0.0915248,87528.0,87527.0,0.06998]
[1764682545352,0.3200231,87528.0,87527.0,0.06998]
[1764682545777,0.32040594,87528.0,87527.0,0.06998]
[1764682546608,0.09190764,87528.0,87527.0,0.29848091]
[1764682547209,0.00038284,87528.0,87527.0,0.29848091]
[1764682549208,0.00038284,87528.0,87527.0,0.29948091]
[1764682553599,0.00038284,87528.0,87527.0,0.07098]
[1764682553752,0.00038284,87528.0,87527.0,0.08906]
[1764682553961,0.00072639,87528.0,87527.0,0.31756091]
[1764682561306,0.00072639,87528.0,87527.0,0.08906]
[1764682561657,0.00072639,87528.0,87527.0,0.29948091]
[1764682563327,0.22922469,87528.0,87527.0,0.001]
[1764682564969,0.22850409,87526.0,87524.0,0.01142543]
[1764682565397,0.00024986,87525.0,87524.0,0.23993364]
[1764682565641,0.01142491,87528.0,87524.0,0.23993364]
[1764682565970,0.01142491,87528.0,87526.0,0.02955]
[1764682566086,0.22850312,87527.0,87526.0,0.02955]
[1764682566284,0.23992539,87528.0,87526.0,0.02955]
[1764682566504,0.22850091,87527.0,87526.0,0.02955]
[1764682566801,0.23992539,87528.0,87526.0,0.02955]
[1764682567022,0.1143968,87530.0,87526.0,0.25805134]
[1764682567220,0.11451159,87530.0,87526.0,0.26947651]
[1764682567395,0.2629046,87530.0,87526.0,0.26947651]
[1764682567597,0.2629046,87530.0,87529.0,0.27972569]
[1764682567598,0.00011479,87530.0,87529.0,0.27972569]
[1764682568022,0.00011479,87530.0,87529.0,0.32032569]
[1764682568232,0.00011479,87530.0,87529.0,0.05123]
[1764682568954,0.00011479,87530.0,87529.0,0.27972569]